bitfinex-derivatives/quotes_SOLF0:USTF0_20250829
["timestamp","ask_amount","ask_price","bid_price","bid_amount"]
[1756489231071,4.4293,203.19,203.13,16.16023024]
[1756489231370,7.94,203.25,203.14,7.33]
[1756489231570,7.94,203.25,203.14,11.45962737]
[1756489232261,68.8753,203.26,203.14,4.12962737]
[1756489232467,15.54030287,203.23,203.1,4.12962737]
[1756489232671,15.54030287,203.23,203.09,4.12962737]
[1756489232866,129.04,203.26,203.07,5.51527747]
[1756489232867,7.94,203.19,203.07,4.12962737]
[1756489233067,7.94,203.19,203.06,4.12962737]
[1756489233468,4.4309,203.11,203.06,11.45962737]
[1756489233663,4.4309,203.11,203.07,7.33]
[1756489236072,4.4309,203.11,203.06,4.12962737]
[1756489236674,4.4309,203.11,203.06,11.97962737]
[1756489237378,11.7609,203.11,203.06,11.97962737]
[1756489237980,4.4305,203.13,203.06,11.97962737]
[1756489238177,7.33,203.2,203.08,4.75168492]
[1756489238374,7.33,203.2,203.09,7.85]
[1756489238976,7.33,203.2,203.11,4.75168492]
[1756489239574,7.33,203.25,203.14,4.75168492]
[1756489239775,7.33,203.31,203.23,4.75168492]
[1756489239978,7.33,203.38,203.29,4.75168492]
[1756489240178,7.33,203.45,203.35,4.75168492]
[1756489240387,7.33,203.47,203.37,7.85]
[1756489240576,68.7721,203.57,203.42,4.75168492]
[1756489240779,7.33,203.54,203.45,4.75168492]
[1756489240977,68.7865,203.52,203.42,4.75168492]
[1756489241178,76.1371,203.46,203.36,4.12962737]
[1756489241378,68.8239,203.41,203.35,7.85]
[1756489241584,68.8239,203.41,203.33,46.96]
[1756489241784,68.8239,203.41,203.3,15.43060321]
[1756489241986,76.1311,203.48,203.35,7.85]
[1756489242183,5.382859,203.54,203.42,7.58060321]
[1756489242184,7.33,203.54,203.42,7.58060321]
[1756489242388,7.33,203.54,203.46,7.58060321]
[1756489242591,4.4216,203.54,203.47,7.58060321]
[1756489243086,4.422,203.52,203.47,7.58060321]
[1756489243283,7.33,203.56,203.44,7.85]
[1756489243479,4.4227,203.49,203.44,7.85]
[1756489243684,7.33,203.56,203.4,7.58060321]
[1756489243888,7.33,203.54,203.4,7.58060321]
[1756489244192,7.58060321,203.52,203.36,62.0]
[1756489244385,7.58060321,203.52,203.28,7.58060321]
[1756489244386,7.58060321,203.46,203.3,7.58060321]
[1756489244587,4.4255,203.36,203.3,7.58060321]
[1756489244789,7.33,203.41,203.27,15.43060321]
[1756489245886,7.33,203.41,203.27,7.85]
[1756489246387,4.4258,203.35,203.28,7.58060321]
[1756489246785,7.33,203.41,203.31,15.43060321]
[1756489246989,4.4249,203.39,203.31,15.43060321]
[1756489247384,7.33,203.46,203.34,7.58060321]
[1756489247588,4.4242,203.42,203.37,7.58060321]
[1756489248090,4.4246,203.4,203.37,7.58060321]
[1756489248291,7.33,203.46,203.34,7.58060321]
[1756489248894,4.4251,203.38,203.35,7.85]
[1756489249188,4.4251,203.38,203.34,7.58060321]
[1756489249395,4.4244,203.41,203.34,7.58060321]
[1756489249693,68.8231,203.42,203.34,7.58060321]
[1756489249890,4.4249,203.39,203.35,7.85]
[1756489250089,68.832,203.39,203.35,7.85]
[1756489250886,73.2629,203.37,203.34,7.58060321]
[1756489251080,4.4253,203.37,203.34,15.43060321]
[1756489251285,4.4253,203.37,203.35,7.85]
[1756489252294,4.4247,203.4,203.37,7.58060321]
[1756489252592,4.4247,203.4,203.38,7.85]
[1756489253193,4.4241,203.43,203.41,7.85]
[1756489254486,4.4234,203.46,203.43,7.58060321]
[1756489254883,4.4234,203.46,203.43,15.43060321]
[1756489255588,68.7801,203.54,203.48,7.58060321]
[1756489255788,68.779,203.55,203.48,7.58060321]
[1756489255989,7.33,203.58,203.48,7.58060321]
[1756489256184,7.33,203.58,203.51,7.58060321]
[1756489256185,4.4217,203.54,203.51,7.58060321]
[1756489256390,4.4217,203.54,203.51,15.43060321]
[1756489256590,4.4217,203.54,203.51,7.58060321]
[1756489257600,4.4225,203.5,203.48,7.58060321]
[1756489258695,68.7942,203.5,203.44,7.58060321]
[1756489259299,68.8013,203.48,203.41,12.30565799]
[1756489259499,68.8013,203.48,203.42,128.82]
[1756489259798,4.4235,203.45,203.42,128.82]
[1756489259999,4.4235,203.45,203.43,7.85]
[1756489260496,4.4239,203.43,203.41,12.30565799]
[1756489260700,4.4239,203.43,203.41,128.8]
[1756489260999,68.8058,203.47,203.41,128.8]
[1756489261403,4.4232,203.47,203.41,128.8]
[1756489261700,4.4232,203.47,203.45,7.85]
[1756489261896,4.4235,203.45,203.44,12.30565799]
[1756489262798,4.424,203.43,203.41,128.78]
[1756489262993,68.8036,203.47,203.4,20.15565799]
[1756489262994,68.8138,203.44,203.4,20.15565799]
[1756489263198,68.8138,203.44,203.4,12.30565799]
[1756489263397,4.4238,203.44,203.4,20.15565799]
[1756489263901,68.7942,203.5,203.4,20.15565799]
[1756489264103,68.8045,203.47,203.4,20.15565799]
[1756489264600,4.4239,203.43,203.4,12.30565799]
[1756489264803,68.817,203.43,203.38,330.44]
[1756489265003,76.147,203.43,203.38,330.44]
[1756489265496,76.147,203.43,203.36,128.78]
[1756489265696,4.4247,203.4,203.36,128.78]
[1756489265897,7.33,203.43,203.36,136.63]
[1756489266904,4.4249,203.39,203.36,136.63]
[1756489267604,4.4249,203.39,203.31,4.4265]
[1756489267605,68.8312,203.39,203.31,141.06565799]
[1756489267805,68.8343,203.38,203.31,141.06565799]
[1756489268403,68.8276,203.4,203.31,141.06565799]
[1756489269109,4.4258,203.35,203.31,141.06565799]
[1756489269302,4.4258,203.35,203.31,149.04565799]
[1756489269809,68.8448,203.35,203.31,128.76]
[1756489269996,68.8512,203.33,203.27,136.74]
[1756489270200,7.35,203.35,203.27,128.76]
[1756489270401,68.8483,203.34,203.27,128.76]
[1756489270605,68.8516,203.33,203.27,128.76]
[1756489270801,68.8577,203.31,203.23,20.28565799]
[1756489271006,68.8646,203.29,203.23,20.28565799]
[1756489271203,68.8646,203.29,203.21,102.7]
[1756489271399,7.35,203.27,203.16,12.30565799]
[1756489271703,96.92,203.26,203.15,7.98]
[1756489271904,7.35,203.22,203.14,128.76]
[1756489272101,0.85644673,203.29,203.21,7.98]
[1756489272302,0.85644673,203.29,203.24,12.30565799]
[1756489272501,2.84,203.37,203.24,20.28565799]
[1756489272703,7.35,203.39,203.28,12.30565799]
[1756489272905,62.24,203.43,203.18,4.09405109]
[1756489273108,7.35,203.42,203.2,20.28565799]
[1756489273306,62.24,203.43,203.2,20.28565799]
[1756489273506,7.35,203.42,203.2,20.28565799]
[1756489273705,7.35,203.39,203.2,20.28565799]
[1756489273903,7.35,203.37,203.2,20.28565799]
[1756489274701,4.4264,203.32,203.2,20.28565799]
[1756489274902,7.35,203.37,203.2,12.30565799]
[1756489275111,7.35,203.37,203.19,128.78]
[1756489275112,7.35,203.37,203.25,7.98]
[1756489275604,7.35,203.37,203.2,12.30565799]
[1756489275803,4.4256,203.36,203.21,7.98]
[1756489276005,7.35,203.37,203.22,62.0]
[1756489276805,4.4263,203.32,203.22,62.0]
[1756489277503,7.35,203.31,203.21,7.98]
[1756489277706,92.76565799,203.36,203.19,128.78]
[1756489277904,92.76565799,203.36,203.16,342.66565799]
[1756489277905,92.76565799,203.36,203.16,12.30565799]
[1756489278104,7.35,203.35,203.15,7.98]
[1756489278503,7.35,203.35,203.13,128.8]
[1756489278504,7.35,203.35,203.24,12.30565799]
[1756489278710,4.427,203.29,203.24,12.30565799]
[1756489278901,4.427,203.29,203.21,91.86]
[1756489279308,4.427,203.29,203.22,7.5890483]
[1756489280708,4.427,203.29,203.22,69.5890483]
[1756489280907,4.4274,203.27,203.21,7.5890483]
[1756489281506,11.7769,203.3,203.24,7.5890483]
[1756489281705,7.35,203.3,203.24,7.5890483]
[1756489282410,4.4274,203.28,203.24,7.5890483]
[1756489282606,76.1885,203.37,203.24,7.5890483]
[1756489282903,4.4263,203.32,203.28,7.5890483]
[1756489284402,4.4263,203.32,203.26,7.5890483]
[1756489284605,4.4259,203.34,203.26,7.5890483]
[1756489285006,68.8488,203.34,203.26,7.5890483]
[1756489285210,4.4271,203.29,203.23,15.5690483]
[1756489288112,4.4273,203.28,203.23,15.5690483]
[1756489288312,11.7773,203.28,203.23,7.5890483]
[1756489288513,4.4273,203.28,203.23,7.5890483]
[1756489289611,4.4273,203.28,203.2,12.4087]
[1756489289814,4.4273,203.28,203.21,7.5890483]
[1756489290020,68.8342,203.38,203.27,7.5890483]
[1756489290216,68.8374,203.37,203.27,7.5890483]
[1756489290614,76.1804,203.39,203.27,7.5890483]
[1756489291018,68.8338,203.38,203.27,7.5890483]
[1756489292812,76.1804,203.39,203.26,62.0]
[1756489292813,7.35,203.39,203.3,7.5890483]
[1756489294716,4.4253,203.37,203.3,12.0156483]
[1756489297531,4.4242,203.42,203.36,7.5890483]
[1756489298620,4.4245,203.41,203.36,7.5890483]
[1756489298823,4.4245,203.41,203.36,15.2990483]
[1756489301727,4.4247,203.4,203.36,15.2990483]
[1756489301929,68.8273,203.4,203.33,7.5890483]
[1756489302127,68.8273,203.4,203.31,7.71]
[1756489302323,4.426,203.34,203.31,7.71]
[1756489302531,76.356,203.38,203.27,7.5890483]
[1756489303634,4.426,203.34,203.27,7.5890483]
[1756489304231,4.4254,203.36,203.27,7.5890483]
[1756489304534,7.52,203.42,203.3,7.5890483]
[1756489304931,4.4253,203.37,203.3,7.5890483]
[1756489305535,7.52,203.38,203.28,15.2990483]
[1756489305832,7.52,203.38,203.26,7.5890483]
[1756489306035,4.4265,203.31,203.26,7.5890483]
[1756489306236,4.4265,203.31,203.26,15.2990483]
[1756489306625,4.4261,203.33,203.27,7.71]
[1756489307334,7.52,203.36,203.27,7.71]
[1756489307931,7.52,203.36,203.24,19.41023055]
[1756489308235,4.427,203.29,203.24,19.41023055]
[1756489308636,4.427,203.29,203.25,7.71]
[1756489310031,68.8659,203.29,203.23,4.11118225]
[1756489310232,68.8659,203.29,203.19,11.70023055]
[1756489310233,76.3859,203.29,203.19,11.70023055]
[1756489310539,76.3859,203.29,203.18,4.11118225]
[1756489310540,68.8677,203.28,203.18,4.11118225]
[1756489310833,4.4284,203.23,203.17,11.82118225]
[1756489311637,4.4278,203.25,203.17,11.82118225]
[1756489312239,4.4274,203.27,203.2,4.11118225]
[1756489314538,7.52,203.29,203.18,66.11118225]
[1756489315032,4.4275,203.27,203.18,66.11118225]
[1756489315233,7.52,203.29,203.2,7.5890483]
[1756489315435,7.52,203.34,203.23,7.5890483]
[1756489315639,7.52,203.34,203.24,7.71]
[1756489315837,4.4265,203.31,203.24,7.71]
[1756489316034,7.52,203.34,203.24,7.71]
[1756489316541,7.52,203.38,203.26,7.5890483]
[1756489316733,7.52,203.38,203.29,7.5890483]
[1756489316939,4.4255,203.36,203.27,15.2990483]
[1756489317141,4.4255,203.36,203.27,19.41023055]
[1756489317538,7.52,203.38,203.28,4.11118225]
[1756489317736,7.52,203.38,203.29,4.11118225]
[1756489317943,7.52,203.38,203.3,11.70023055]
[1756489318442,7.52,203.38,203.3,7.5890483]
[1756489318643,7.52,203.38,203.28,4.11118225]
[1756489319340,7.52,203.38,203.27,19.7263483]
[1756489319341,68.8405,203.36,203.27,11.82118225]
[1756489319535,68.8405,203.36,203.27,7.71]
[1756489319742,68.8405,203.36,203.28,62.0]
[1756489320242,76.3541,203.38,203.28,69.5890483]
[1756489320539,7.52,203.38,203.29,4.11118225]
[1756489320738,4.4258,203.35,203.28,73.70023055]
[1756489320944,4.4258,203.35,203.29,4.11118225]
[1756489322043,7.52,203.38,203.29,4.11118225]
[1756489322243,7.52,203.38,203.28,69.5890483]
[1756489322244,76.3546,203.38,203.28,73.70023055]
[1756489322545,68.837,203.37,203.28,11.70023055]
[1756489323039,68.837,203.37,203.28,7.5890483]
[1756489323239,68.837,203.37,203.28,11.70023055]
[1756489323438,68.837,203.37,203.27,7.71]
[1756489323439,7.52,203.32,203.27,7.71]
[1756489324034,4.4266,203.31,203.27,7.71]
[1756489324234,7.52,203.36,203.27,7.71]
[1756489324745,76.3607,203.36,203.27,7.71]
[1756489325641,4.4264,203.32,203.27,7.71]
[1756489325945,68.8346,203.38,203.26,86.3]
[1756489326141,7.52,203.37,203.26,86.3]
[1756489326338,68.8346,203.38,203.26,86.3]
[1756489326640,7.74,203.37,203.27,7.5890483]
[1756489326844,7.74,203.42,203.31,7.5890483]
[1756489327043,7.74,203.42,203.32,7.23]
[1756489327241,7.74,203.47,203.35,14.8190483]
[1756489327440,7.74,203.47,203.35,18.93023055]
[1756489327841,4.4244,203.41,203.35,14.8190483]
[1756489328037,74.43474741,203.48,203.38,7.5890483]
[1756489328240,7.74,203.49,203.38,18.93023055]
[1756489328442,7.74,203.49,203.41,7.5890483]
[1756489328646,7.74,203.49,203.41,14.8190483]
[1756489329148,4.4229,203.48,203.41,14.8190483]
[1756489329445,330.48,203.52,203.4,66.11118225]
[1756489329747,7.74,203.5,203.35,136.16118225]
[1756489329942,7.74,203.5,203.35,132.05]
[1756489330249,7.74,203.5,203.35,124.82]
[1756489330549,8.44452656,203.51,203.35,124.82]
[1756489330849,136.52,203.5,203.37,7.5890483]
[1756489332348,7.74,203.5,203.37,7.5890483]
[1756489332551,4.4243,203.42,203.37,7.5890483]
[1756489332749,7.74,203.48,203.37,7.5890483]
[1756489333750,4.4235,203.45,203.4,7.5890483]
[1756489333950,7.74,203.48,203.41,7.23]
[1756489334351,4.4234,203.46,203.41,7.23]
[1756489335044,4.4234,203.46,203.4,14.8190483]
[1756489336151,4.4228,203.48,203.44,7.23]
[1756489337148,68.7796,203.54,203.46,7.5890483]
[1756489337350,68.7913,203.51,203.44,7.23]
[1756489337550,68.7928,203.5,203.44,7.23]
[1756489337847,4.4234,203.46,203.42,7.5890483]
[1756489338053,68.803,203.47,203.39,143.5590483]
[1756489338247,7.74,203.49,203.39,143.5590483]
[1756489339050,4.4235,203.45,203.39,143.5590483]
[1756489339253,68.7996,203.48,203.39,143.5590483]
[1756489339746,4.424,203.43,203.39,143.5590483]
[1756489339952,4.424,203.43,203.4,7.23]
[1756489340354,4.424,203.43,203.39,136.3290483]
[1756489340553,4.424,203.43,203.4,7.23]
[1756489340955,4.424,203.43,203.39,136.3290483]
[1756489341150,4.424,203.43,203.4,7.23]
[1756489341358,4.4234,203.45,203.39,136.3290483]
[1756489341857,4.4232,203.46,203.39,136.3290483]
[1756489342657,4.4227,203.49,203.42,14.8190483]
[1756489342958,68.7864,203.52,203.42,14.8190483]
[1756489343359,4.4229,203.48,203.42,14.8190483]
[1756489343555,4.4229,203.48,203.46,7.23]
[1756489344750,4.4231,203.47,203.45,7.5890483]
[1756489344958,68.8032,203.47,203.39,7.5890483]
[1756489345360,68.8231,203.41,203.32,14.8190483]
[1756489346561,76.5574,203.43,203.32,14.8190483]
[1756489346958,76.5698,203.39,203.3,334.59118225]
[1756489347158,68.8367,203.37,203.3,330.48]
[1756489347359,68.8503,203.33,203.24,132.81118225]
[1756489347559,68.8482,203.34,203.23,11.70023055]
[1756489347759,68.8482,203.34,203.23,7.5890483]
[1756489348164,7.74,203.31,203.2,4.11118225]
[1756489348463,7.74,203.31,203.19,4.11118225]
[1756489348657,4.4282,203.23,203.18,7.5890483]
[1756489348860,7.74,203.27,203.15,11.34118225]
[1756489349061,7.74,203.27,203.15,7.23]
[1756489349262,4.4281,203.24,203.15,7.23]
[1756489349558,7.74,203.27,203.15,7.23]
[1756489349764,7.74,203.27,203.15,11.34118225]
[1756489351168,4.4281,203.24,203.15,7.23]
[1756489351763,4.4281,203.24,203.16,62.0]
[1756489353774,7.74,203.27,203.15,7.23]
[1756489354268,4.4281,203.24,203.15,7.23]
[1756489354474,7.74,203.27,203.18,7.5890483]
[1756489354669,7.74,203.27,203.18,14.8190483]
[1756489355078,12.1675,203.27,203.18,14.8190483]
[1756489355474,7.74,203.33,203.22,7.23]
[1756489355676,12.1662,203.33,203.22,7.23]
[1756489356375,12.1662,203.33,203.24,7.5890483]
[1756489356778,12.1662,203.33,203.24,69.5890483]
[1756489357878,7.74,203.33,203.24,69.5890483]
[1756489358076,68.854,203.32,203.22,7.23]
[1756489358380,7.74,203.33,203.22,7.23]
[1756489359371,4.4264,203.32,203.24,7.5890483]
[1756489360881,128.76,203.37,203.25,7.21]
[1756489360882,4.4258,203.34,203.25,7.21]
[1756489361074,4.4258,203.34,203.27,7.5890483]
[1756489361384,4.4258,203.34,203.26,62.0]
[1756489361583,4.4258,203.34,203.27,7.5890483]
[1756489362784,4.4258,203.34,203.2,197.6529]
[1756489362785,7.51,203.32,203.23,136.3490483]
[1756489363681,4.4263,203.32,203.23,136.3490483]
[1756489363978,4.4263,203.32,203.24,7.21]
[1756489364780,68.8471,203.34,203.24,7.21]
[1756489364781,4.4267,203.31,203.24,7.21]
[1756489365884,4.4267,203.31,203.24,69.21]
[1756489366582,4.4269,203.29,203.24,7.21]
[1756489366881,7.51,203.31,203.21,136.3290483]
[1756489367082,76.3472,203.37,203.25,7.21]
[1756489368086,4.4259,203.34,203.27,7.5890483]
[1756489370187,4.4262,203.33,203.27,7.5890483]
[1756489372186,4.4257,203.35,203.28,7.21]
[1756489372588,4.4252,203.37,203.31,7.21]
[1756489373685,83.57974507,203.42,203.33,7.5890483]
[1756489374081,76.3179,203.46,203.34,7.21]
[1756489374284,7.51,203.46,203.36,7.5890483]
[1756489375791,4.4242,203.42,203.36,7.5890483]
[1756489376492,11.9344,203.41,203.36,14.7990483]
[1756489377688,4.4239,203.43,203.37,7.21]
[1756489378087,7.51,203.46,203.34,7.21]
[1756489378288,7.51,203.46,203.35,7.5890483]
[1756489379991,7.51,203.46,203.34,7.21]
[1756489380192,68.8098,203.45,203.35,7.5890483]
[1756489381093,76.3241,203.44,203.34,7.21]
[1756489381389,68.8197,203.42,203.34,7.21]
[1756489381693,4.4246,203.4,203.34,7.21]
[1756489382098,4.4248,203.39,203.34,7.21]
[1756489382292,4.4248,203.39,203.33,14.7990483]
[1756489383193,7.51,203.41,203.33,7.21]
[1756489383696,7.51,203.38,203.31,7.5890483]
[1756489383888,7.51,203.38,203.28,7.5890483]
[1756489384496,4.4259,203.34,203.28,7.5890483]
[1756489384688,7.51,203.38,203.28,7.5890483]
[1756489385084,7.51,203.42,203.32,7.21]
[1756489385290,7.51,203.49,203.37,7.5890483]
[1756489386190,7.51,203.49,203.38,7.21]
[1756489388194,4.4232,203.46,203.4,7.5890483]
[1756489388997,4.4232,203.46,203.41,7.69]
[1756489389187,4.4228,203.48,203.41,7.69]
[1756489389392,41.88,203.57,203.44,7.69]
[1756489389691,7.85,203.56,203.46,7.5890483]
[1756489389886,7.85,203.56,203.47,7.69]
[1756489390597,7.85,203.56,203.49,7.5890483]
[1756489391591,4.4216,203.54,203.5,7.69]
[1756489391991,7.85,203.59,203.49,15.2790483]
[1756489392298,4.4213,203.55,203.49,77.2790483]
[1756489393091,4.4216,203.54,203.49,62.0]
[1756489393297,68.7715,203.56,203.49,62.0]
[1756489393500,7.85,203.57,203.48,7.5890483]
[1756489394797,4.421,203.56,203.48,7.5890483]
[1756489394998,7.85,203.57,203.49,7.5890483]
[1756489395398,4.4218,203.53,203.5,7.69]
[1756489395899,7.85,203.57,203.5,7.69]
[1756489396993,68.7711,203.56,203.48,7.5890483]
[1756489397395,4.4216,203.53,203.49,7.69]
[1756489397594,4.4216,203.53,203.48,7.5890483]
[1756489398296,4.4212,203.55,203.49,7.69]
[1756489399903,12.2716,203.54,203.49,7.69]
[1756489400297,7.85,203.53,203.46,7.5890483]
[1756489400501,4.4224,203.5,203.46,7.5890483]
[1756489401103,4.4224,203.5,203.46,15.2790483]
[1756489401602,4.4218,203.53,203.47,7.69]
[1756489402804,4.422,203.52,203.47,7.69]
[1756489403801,4.422,203.52,203.46,15.2790483]
[1756489404800,4.4222,203.51,203.46,15.2790483]
[1756489405000,7.85,203.54,203.46,15.2790483]
[1756489405499,7.85,203.54,203.48,4.73205614]
[1756489405913,76.6287,203.54,203.48,4.73205614]
[1756489406803,4.4224,203.5,203.48,4.73205614]
[1756489407304,7.85,203.53,203.44,4.73205614]
[1756489407506,7.85,203.53,203.41,4.73205614]
[1756489409404,4.4235,203.44,203.38,135.95657033]
[1756489410400,4.4235,203.44,203.39,7.69]
[1756489411008,4.4235,203.44,203.38,135.95657033]
[1756489411206,4.4235,203.44,203.38,143.64657033]
[1756489411505,4.4235,203.44,203.4,7.69]
[1756489412002,4.4231,203.46,203.4,7.69]
[1756489412306,7.85,203.53,203.42,7.57657033]
[1756489412607,4.4227,203.48,203.42,7.57657033]
[1756489412805,7.85,203.53,203.42,7.57657033]
[1756489414206,4.4231,203.46,203.41,7.57657033]
[1756489414405,4.4231,203.46,203.42,7.69]
[1756489414608,4.4231,203.46,203.41,7.57657033]
[1756489415108,4.4231,203.46,203.42,7.69]
[1756489416409,12.2731,203.46,203.42,7.69]
[1756489416609,7.57657033,203.52,203.38,4.09042756]
[1756489416810,7.3,203.51,203.37,113.22081948]
[1756489417107,7.57657033,203.52,203.37,113.22081948]
[1756489417517,7.57657033,203.52,203.38,7.35]
[1756489417518,7.3,203.51,203.38,7.35]
[1756489418117,4.4236,203.44,203.38,7.35]
[1756489419107,4.4236,203.44,203.4,7.35]
[1756489419316,7.3,203.57,203.42,7.57657033]
[1756489419516,7.3,203.57,203.43,7.35]
[1756489419716,7.3,203.57,203.43,73.44042756]
[1756489420019,7.3,203.59,203.43,73.44042756]
[1756489420406,337.97657033,203.62,203.43,73.44042756]
[1756489420607,337.97657033,203.62,203.45,7.35]
[1756489420608,135.62,203.61,203.45,7.35]
[1756489420916,4.422,203.51,203.45,7.35]
[1756489421218,7.3,203.54,203.45,7.35]
[1756489422219,4.4216,203.52,203.45,7.35]
[1756489422812,4.4219,203.51,203.45,7.35]
[1756489423415,4.4221,203.5,203.44,11.44042756]
[1756489423814,4.4224,203.49,203.44,11.44042756]
[1756489424119,11.7224,203.49,203.44,4.09042756]
[1756489424310,4.4228,203.47,203.44,4.09042756]
[1756489424513,7.3,203.52,203.43,7.35]
[1756489425219,4.4226,203.48,203.42,11.66699789]
[1756489425418,4.4226,203.48,203.42,19.01699789]
[1756489426120,4.4228,203.47,203.42,19.01699789]
[1756489426319,4.4228,203.47,203.43,7.35]
[1756489426714,4.4228,203.47,203.42,11.66699789]
[1756489426918,4.423,203.46,203.44,7.35]
[1756489427118,7.3,203.52,203.42,11.66699789]
[1756489427520,4.4229,203.47,203.43,7.35]
[1756489427717,4.4229,203.47,203.44,7.35]
[1756489428022,4.423,203.46,203.44,7.35]
[1756489429025,4.4226,203.48,203.44,7.35]
[1756489429419,4.4226,203.48,203.46,4.73287765]
[1756489429722,7.3,203.56,203.47,135.59]
[1756489429927,7.3,203.56,203.51,12.08287765]
[1756489430525,7.3,203.56,203.51,12.11896257]
[1756489430729,4.4215,203.53,203.51,12.11896257]
[1756489431224,4.4215,203.53,203.51,4.76896257]
[1756489431520,7.3,203.59,203.52,7.35]
[1756489431731,7.3,203.59,203.55,4.73287765]
[1756489432727,4.4207,203.57,203.55,4.73287765]
[1756489434225,7.3,203.59,203.56,4.73287765]
[1756489434423,7.3,203.67,203.56,4.73287765]
[1756489434930,7.3,203.67,203.59,0.03156395]
[1756489436525,7.3,203.6,203.45,3.772e-05]
[1756489436729,7.3,203.55,203.43,12.08287765]
[1756489436925,4.73287765,203.56,203.43,12.08287765]
[1756489437430,7.3,203.55,203.46,12.08287765]
[1756489437628,68.7747,203.54,203.46,12.08287765]
[1756489437930,4.4222,203.5,203.46,4.73287765]
[1756489438234,4.4222,203.5,203.47,7.35]
[1756489438428,7.33782034,203.52,203.47,7.35]
[1756489439124,68.7884,203.5,203.43,7.35]
[1756489439729,4.4232,203.45,203.43,7.35]
[1756489440132,7.3,203.51,203.43,7.35]
[1756489440325,7.3,203.51,203.42,4.73287765]
[1756489440531,0.03697584,203.46,203.45,12.08287765]
[1756489441726,7.3,203.55,203.45,12.08287765]
[1756489442222,4.4222,203.5,203.45,4.73287765]
[1756489442421,4.4222,203.5,203.46,7.35]
[1756489442824,7.3,203.51,203.45,0.03455955]
[1756489444834,7.3,203.52,203.45,7.38455955]
[1756489445224,7.3,203.52,203.46,4.73287765]
[1756489445430,7.3,203.57,203.49,12.08287765]
[1756489445725,68.7533,203.61,203.52,12.08287765]
[1756489446130,68.7533,203.61,203.54,0.03252606]
[1756489446936,7.3,203.62,203.55,4.73287765]
[1756489447330,7.3,203.62,203.54,0.03252606]
[1756489447525,4.4202,203.59,203.55,7.4]
[1756489447824,128.08,203.67,203.56,7.56463649]
[1756489447825,7.31,203.67,203.56,7.56463649]
[1756489448632,7.31,203.67,203.59,0.03594542]
[1756489449135,4.4196,203.62,203.59,0.03594542]
[1756489450235,4.4198,203.61,203.59,0.03594542]
[1756489451731,7.31,203.67,203.59,0.03594542]
[1756489451938,7.31,203.67,203.6,7.56463649]
[1756489453133,7.31,203.67,203.6,14.96463649]
[1756489453529,7.31,203.8,203.64,7.4]
[1756489453731,7.31,203.81,203.64,14.96463649]
[1756489454038,7.56463649,203.79,203.64,14.96463649]
[1756489454240,7.31,203.78,203.61,7.56463649]
[1756489454435,0.0322693,203.74,203.61,7.56463649]
[1756489454635,7.31,203.73,203.58,7.56463649]
[1756489455037,7.31,203.73,203.59,7.4]
[1756489455640,4.419,203.64,203.58,14.96463649]
[1756489456236,0.03106902,203.63,203.58,14.96463649]
[1756489456433,0.03106902,203.63,203.59,7.4]
[1756489456637,0.03106902,203.63,203.58,7.56463649]
[1756489457036,0.03106902,203.63,203.59,7.4]
[1756489457237,0.03106902,203.63,203.58,7.56463649]
[1756489457432,0.03106902,203.63,203.59,7.4]
[1756489457738,4.45046902,203.63,203.59,7.4]
[1756489458041,4.45046902,203.63,203.58,7.56463649]
[1756489458241,4.45046902,203.63,203.59,7.4]